[Event "*** Titled Tuesday Blitz"]
[Site "Chess.com"]
[Date "2020.05.26"]
[Round "10"]
[White "Khayala13"]
[Black "Grineva_Marianna"]
[Result "0-1"]
[WhiteElo "2309"]
[BlackElo "2162"]
[TimeControl "180+1"]
[EndTime "12:03:45 PDT"]
[Termination "Grineva_Marianna won on time"]

1. e4 {[%clk 0:03:00.9]} 1... d6 {[%clk 0:02:59]} 2. d4 {[%clk 0:03:00.4]} 2...
Nf6 {[%clk 0:02:59]} 3. Nc3 {[%clk 0:03:00.9]} 3... g6 {[%clk 0:02:59.4]} 4. f4
{[%clk 0:03:00.9]} 4... Bg7 {[%clk 0:02:59.2]} 5. Nf3 {[%clk 0:03:01.4]} 5... c5
{[%clk 0:02:59.2]} 6. d5 {[%clk 0:02:57.3]} 6... O-O {[%clk 0:02:56.2]} 7. Bd3
{[%clk 0:02:49.2]} 7... b5 {[%clk 0:02:41.9]} 8. Bxb5 {[%clk 0:02:41.2]} 8...
Nxe4 {[%clk 0:02:38.9]} 9. Nxe4 {[%clk 0:02:33.3]} 9... Qa5+ {[%clk 0:02:38.2]}
10. Ned2 {[%clk 0:02:12.5]} 10... Qxb5 {[%clk 0:02:35.9]} 11. c4 {[%clk
0:02:12.9]} 11... Qb7 {[%clk 0:02:23]} 12. O-O {[%clk 0:02:12.6]} 12... Bf5
{[%clk 0:02:16.4]} 13. Nb3 {[%clk 0:02:04.4]} 13... a5 {[%clk 0:02:12.6]} 14. a4
{[%clk 0:02:01]} 14... Qb4 {[%clk 0:01:55.3]} 15. Bd2 {[%clk 0:01:41.3]} 15...
Qxc4 {[%clk 0:01:50.3]} 16. Nxa5 {[%clk 0:01:34.4]} 16... Qa6 {[%clk 0:01:08.3]}
17. Qc1 {[%clk 0:01:27.6]} 17... Nd7 {[%clk 0:01:06.6]} 18. Nc6 {[%clk
0:01:26.2]} 18... Rfe8 {[%clk 0:01:05.1]} 19. Re1 {[%clk 0:01:25.4]} 19... Bf6
{[%clk 0:01:05.1]} 20. Bc3 {[%clk 0:01:22.3]} 20... Kf8 {[%clk 0:01:01.6]} 21.
Bxf6 {[%clk 0:01:20.8]} 21... Nxf6 {[%clk 0:00:54.6]} 22. Qd2 {[%clk 0:01:13.2]}
22... Qc4 {[%clk 0:00:48.1]} 23. Nh4 {[%clk 0:00:55.1]} 23... Qxd5 {[%clk
0:00:41.6]} 24. Qxd5 {[%clk 0:00:54.6]} 24... Nxd5 {[%clk 0:00:42.5]} 25. Nxf5
{[%clk 0:00:54.4]} 25... gxf5 {[%clk 0:00:43.4]} 26. Red1 {[%clk 0:00:26.5]}
26... Nxf4 {[%clk 0:00:33.9]} 27. Rf1 {[%clk 0:00:26.9]} 27... Ne6 {[%clk
0:00:20.6]} 28. Rxf5 {[%clk 0:00:25.6]} 28... Rec8 {[%clk 0:00:19.7]} 29. Raf1
{[%clk 0:00:21.6]} 29... Rxc6 {[%clk 0:00:19.6]} 30. Rxf7+ {[%clk 0:00:20.5]}
30... Ke8 {[%clk 0:00:20.2]} 31. Rxh7 {[%clk 0:00:20.6]} 31... Rxa4 {[%clk
0:00:19.9]} 32. h4 {[%clk 0:00:19.2]} 32... Rb4 {[%clk 0:00:18.9]} 33. Rf2
{[%clk 0:00:18.8]} 33... c4 {[%clk 0:00:17.9]} 34. h5 {[%clk 0:00:18.8]} 34...
Rc5 {[%clk 0:00:16.5]} 35. Rff7 {[%clk 0:00:16.6]} 35... Rb7 {[%clk 0:00:14.9]}
36. h6 {[%clk 0:00:15.1]} 36... Rh5 {[%clk 0:00:13.2]} 37. Rf2 {[%clk
0:00:12.9]} 37... Kd7 {[%clk 0:00:12]} 38. Rff7 {[%clk 0:00:11.7]} 38... Kc6
{[%clk 0:00:11.7]} 39. Rxe7 {[%clk 0:00:11.3]} 39... Rxe7 {[%clk 0:00:11.7]} 40.
Rxe7 {[%clk 0:00:11.9]} 40... Rxh6 {[%clk 0:00:12.2]} 41. Kf2 {[%clk 0:00:11.6]}
41... Rg6 {[%clk 0:00:12.5]} 42. g3 {[%clk 0:00:11.4]} 42... Nd4 {[%clk
0:00:12.7]} 43. Ke3 {[%clk 0:00:11.1]} 43... Kd5 {[%clk 0:00:13]} 44. Re8 {[%clk
0:00:09.1]} 44... Nb3 {[%clk 0:00:12.8]} 45. Rb8 {[%clk 0:00:07.3]} 45... Nc5
{[%clk 0:00:13.1]} 46. Kf4 {[%clk 0:00:07]} 46... Nd3+ {[%clk 0:00:13.1]} 47.
Kf3 {[%clk 0:00:07]} 47... Kd4 {[%clk 0:00:13.4]} 48. g4 {[%clk 0:00:06.7]}
48... d5 {[%clk 0:00:13.6]} 49. Rb7 {[%clk 0:00:05.1]} 49... Ne5+ {[%clk
0:00:13.5]} 50. Kf4 {[%clk 0:00:05.2]} 50... Rxg4+ {[%clk 0:00:14]} 51. Kf5
{[%clk 0:00:06.1]} 51... Re4 {[%clk 0:00:13.7]} 52. Re7 {[%clk 0:00:05.2]} 52...
Nd3 {[%clk 0:00:13.4]} 53. Rd7 {[%clk 0:00:04.5]} 53... Nxb2 {[%clk 0:00:13.1]}
54. Kf6 {[%clk 0:00:02.4]} 54... Nd3 {[%clk 0:00:13.5]} 55. Kf5 {[%clk
0:00:01.8]} 55... c3 {[%clk 0:00:14]} 0-1

[Event "*** Titled Tuesday Blitz"]
[Site "Chess.com"]
[Date "2020.05.26"]
[Round "10"]
[White "talman67"]
[Black "Volodar_Murzin"]
[Result "0-1"]
[WhiteElo "2573"]
[BlackElo "2718"]
[TimeControl "180+1"]
[EndTime "12:03:46 PDT"]
[Termination "Volodar_Murzin won on time"]

1. e4 {[%clk 0:03:00.9]} 1... c6 {[%clk 0:02:56.2]} 2. d4 {[%clk 0:03:00.6]}
2... d5 {[%clk 0:02:57.1]} 3. e5 {[%clk 0:03:01.2]} 3... Bf5 {[%clk 0:02:47.5]}
4. Nf3 {[%clk 0:03:01.6]} 4... e6 {[%clk 0:02:46.5]} 5. Be2 {[%clk 0:03:02.1]}
5... Ne7 {[%clk 0:02:43.9]} 6. O-O {[%clk 0:03:00.6]} 6... c5 {[%clk 0:02:43.7]}
7. c4 {[%clk 0:02:48.8]} 7... Nbc6 {[%clk 0:02:41.4]} 8. dxc5 {[%clk 0:02:44.6]}
8... dxc4 {[%clk 0:02:39.9]} 9. Bxc4 {[%clk 0:02:37.3]} 9... Ng6 {[%clk
0:02:38.7]} 10. Be3 {[%clk 0:02:14.4]} 10... Ngxe5 {[%clk 0:02:33.3]} 11. Nxe5
{[%clk 0:02:15.3]} 11... Qxd1 {[%clk 0:02:29.3]} 12. Rxd1 {[%clk 0:02:15.2]}
12... Nxe5 {[%clk 0:02:29.8]} 13. Bb5+ {[%clk 0:02:12.9]} 13... Nc6 {[%clk
0:02:28.5]} 14. Nc3 {[%clk 0:02:10.8]} 14... Rd8 {[%clk 0:02:26.3]} 15. b4
{[%clk 0:02:03]} 15... a6 {[%clk 0:02:22.5]} 16. Bxc6+ {[%clk 0:01:45.4]} 16...
bxc6 {[%clk 0:02:23.4]} 17. Rxd8+ {[%clk 0:01:46]} 17... Kxd8 {[%clk 0:02:22.1]}
18. Rd1+ {[%clk 0:01:46.9]} 18... Ke8 {[%clk 0:02:19.1]} 19. Bf4 {[%clk
0:01:35.2]} 19... Be7 {[%clk 0:02:02.6]} 20. Rd2 {[%clk 0:01:33]} 20... f6
{[%clk 0:02:00.8]} 21. Bd6 {[%clk 0:01:32.4]} 21... e5 {[%clk 0:01:58.9]} 22. f3
{[%clk 0:01:23.4]} 22... Kf7 {[%clk 0:01:57.3]} 23. Bxe7 {[%clk 0:01:23.1]}
23... Kxe7 {[%clk 0:01:58.2]} 24. Rd6 {[%clk 0:01:23.7]} 24... Bd7 {[%clk
0:01:58]} 25. Na4 {[%clk 0:01:23.2]} 25... Rb8 {[%clk 0:01:56.2]} 26. Nb6 {[%clk
0:01:10.9]} 26... Be8 {[%clk 0:01:53.3]} 27. Rd2 {[%clk 0:00:55.5]} 27... Rd8
{[%clk 0:01:51.8]} 28. Rxd8 {[%clk 0:00:51.1]} 28... Kxd8 {[%clk 0:01:52.7]} 29.
Kf2 {[%clk 0:00:51.9]} 29... Bf7 {[%clk 0:01:51.4]} 30. a3 {[%clk 0:00:48]}
30... Bb3 {[%clk 0:01:51.5]} 31. Ke3 {[%clk 0:00:47.1]} 31... h5 {[%clk
0:01:37.4]} 32. h4 {[%clk 0:00:46.1]} 32... Ke7 {[%clk 0:01:28]} 33. Nc8+ {[%clk
0:00:36.6]} 33... Ke6 {[%clk 0:01:27.8]} 34. Nd6 {[%clk 0:00:37.5]} 34... Bd5
{[%clk 0:01:26.7]} 35. Ne8 {[%clk 0:00:36.3]} 35... Kf7 {[%clk 0:01:24.2]} 36.
Nd6+ {[%clk 0:00:29.7]} 36... Ke6 {[%clk 0:01:22.4]} 37. Ne8 {[%clk 0:00:29.8]}
37... Kf7 {[%clk 0:01:18]} 38. Nd6+ {[%clk 0:00:29.9]} 38... Kf8 {[%clk
0:00:41.9]} 39. g3 {[%clk 0:00:26.6]} 39... g6 {[%clk 0:00:40.5]} 40. f4 {[%clk
0:00:25.3]} 40... Ke7 {[%clk 0:00:39.8]} 41. fxe5 {[%clk 0:00:15.6]} 41... fxe5
{[%clk 0:00:40.7]} 42. Kd3 {[%clk 0:00:13]} 42... Ke6 {[%clk 0:00:40.1]} 43. Ke3
{[%clk 0:00:09.8]} 43... Kf6 {[%clk 0:00:35.9]} 44. Kd3 {[%clk 0:00:09.1]} 44...
Ke7 {[%clk 0:00:31]} 45. Ke3 {[%clk 0:00:09]} 45... Ke6 {[%clk 0:00:18.8]} 46.
Kd3 {[%clk 0:00:09.2]} 46... Bg2 {[%clk 0:00:17.7]} 47. Ke3 {[%clk 0:00:06.6]}
47... Kd5 {[%clk 0:00:16.6]} 48. Kd3 {[%clk 0:00:07]} 48... Bf1+ {[%clk
0:00:15.5]} 49. Ke3 {[%clk 0:00:07.2]} 49... Bg2 {[%clk 0:00:13.3]} 50. Kf2
{[%clk 0:00:07.1]} 50... Bh3 {[%clk 0:00:11.7]} 51. Ke3 {[%clk 0:00:07.4]} 51...
Bf5 {[%clk 0:00:10.9]} 52. Nc8 {[%clk 0:00:02]} 52... Bxc8 {[%clk 0:00:09.9]}
0-1

[Event "*** Titled Tuesday Blitz"]
[Site "Chess.com"]
[Date "2020.05.26"]
[Round "10"]
[White "angryhorse9"]
[Black "DaggiGretarsson"]
[Result "1-0"]
[WhiteElo "2483"]
[BlackElo "2593"]
[TimeControl "180+1"]
[EndTime "12:03:46 PDT"]
[Termination "angryhorse9 won on time"]

1. e4 {[%clk 0:02:59.9]} 1... e5 {[%clk 0:02:59.4]} 2. Bc4 {[%clk 0:02:59.3]}
2... Nf6 {[%clk 0:02:57]} 3. d3 {[%clk 0:02:59.1]} 3... c6 {[%clk 0:02:52.2]} 4.
Nf3 {[%clk 0:02:59.5]} 4... Be7 {[%clk 0:02:51.8]} 5. O-O {[%clk 0:02:56]} 5...
d6 {[%clk 0:02:50.8]} 6. Nbd2 {[%clk 0:02:49.5]} 6... O-O {[%clk 0:02:50.3]} 7.
h3 {[%clk 0:02:48.2]} 7... h6 {[%clk 0:02:43.8]} 8. c3 {[%clk 0:02:48.3]} 8...
Nbd7 {[%clk 0:02:40.1]} 9. Re1 {[%clk 0:02:42.6]} 9... b5 {[%clk 0:02:36]} 10.
Bb3 {[%clk 0:02:42.4]} 10... a5 {[%clk 0:02:35.8]} 11. Bc2 {[%clk 0:02:40]}
11... a4 {[%clk 0:02:34.8]} 12. Nf1 {[%clk 0:02:38.1]} 12... Re8 {[%clk
0:02:31.2]} 13. Ng3 {[%clk 0:02:36.5]} 13... Bf8 {[%clk 0:02:25.4]} 14. d4
{[%clk 0:02:36.9]} 14... g6 {[%clk 0:02:15]} 15. a3 {[%clk 0:02:34.3]} 15... Qc7
{[%clk 0:02:06.8]} 16. Nh2 {[%clk 0:02:09.2]} 16... Nb6 {[%clk 0:01:23.4]} 17.
Qf3 {[%clk 0:02:08.2]} 17... Qe7 {[%clk 0:01:10]} 18. Nhf1 {[%clk 0:01:30.3]}
18... Nh7 {[%clk 0:01:01.1]} 19. Ne3 {[%clk 0:01:28.4]} 19... Ng5 {[%clk
0:00:59.6]} 20. Qe2 {[%clk 0:01:28.8]} 20... Ne6 {[%clk 0:00:50.9]} 21. dxe5
{[%clk 0:01:09.5]} 21... dxe5 {[%clk 0:00:50.2]} 22. Qf3 {[%clk 0:00:59.3]}
22... Nf4 {[%clk 0:00:46.9]} 23. Ng4 {[%clk 0:00:59.2]} 23... h5 {[%clk
0:00:41.3]} 24. Nh2 {[%clk 0:00:52.5]} 24... Qf6 {[%clk 0:00:31.1]} 25. Kh1
{[%clk 0:00:49.2]} 25... Nc4 {[%clk 0:00:29]} 26. Nhf1 {[%clk 0:00:48.5]} 26...
Bc5 {[%clk 0:00:21.7]} 27. Ne3 {[%clk 0:00:47.8]} 27... Be6 {[%clk 0:00:20.1]}
28. Nxc4 {[%clk 0:00:47.2]} 28... Bxc4 {[%clk 0:00:19.7]} 29. Be3 {[%clk
0:00:47.8]} 29... Bd6 {[%clk 0:00:11]} 30. Rad1 {[%clk 0:00:45.8]} 30... Rad8
{[%clk 0:00:10.2]} 31. Nf1 {[%clk 0:00:41.4]} 31... Qe7 {[%clk 0:00:07.1]} 32.
Nd2 {[%clk 0:00:41.3]} 32... Be6 {[%clk 0:00:06.6]} 33. Bxf4 {[%clk 0:00:38.2]}
33... exf4 {[%clk 0:00:06.4]} 34. e5 {[%clk 0:00:38]} 34... Bc7 {[%clk
0:00:05.2]} 35. Qxf4 {[%clk 0:00:38.3]} 35... Qc5 {[%clk 0:00:03.7]} 36. Ne4
{[%clk 0:00:28.7]} 36... Rxd1 {[%clk 0:00:03.4]} 37. Rxd1 {[%clk 0:00:27.1]}
37... Bxe5 {[%clk 0:00:03.1]} 38. Qh6 {[%clk 0:00:21.2]} 38... Qe7 {[%clk
0:00:02.6]} 39. Ng5 {[%clk 0:00:19.7]} 39... Bg7 {[%clk 0:00:02.5]} 40. Qh7+
{[%clk 0:00:20.2]} 40... Kf8 {[%clk 0:00:02.9]} 41. h4 {[%clk 0:00:20.1]} 41...
Bd5 {[%clk 0:00:02.4]} 42. Bxg6 {[%clk 0:00:15]} 42... fxg6 {[%clk 0:00:02.3]}
43. Qxg6 {[%clk 0:00:15.9]} 43... Qe5 {[%clk 0:00:02.2]} 44. Qxh5 {[%clk
0:00:10.9]} 44... Qf4 {[%clk 0:00:01.3]} 45. f3 {[%clk 0:00:09]} 1-0

[Event "*** Titled Tuesday Blitz"]
[Site "Chess.com"]
[Date "2020.05.26"]
[Round "10"]
[White "MidnightFox"]
[Black "doctorcristian"]
[Result "1-0"]
[WhiteElo "2413"]
[BlackElo "2295"]
[TimeControl "180+1"]
[EndTime "12:03:46 PDT"]
[Termination "MidnightFox won on time"]

1. e4 {[%clk 0:03:00.9]} 1... c5 {[%clk 0:02:58.5]} 2. Nf3 {[%clk 0:03:00.6]}
2... Nc6 {[%clk 0:02:58.3]} 3. Bb5 {[%clk 0:02:52.3]} 3... d6 {[%clk 0:02:57.9]}
4. O-O {[%clk 0:02:49.7]} 4... Bg4 {[%clk 0:02:57.3]} 5. h3 {[%clk 0:02:44.8]}
5... Bh5 {[%clk 0:02:54]} 6. c3 {[%clk 0:02:35.1]} 6... Qb6 {[%clk 0:02:42.6]}
7. Be2 {[%clk 0:02:30]} 7... e6 {[%clk 0:02:39.8]} 8. Na3 {[%clk 0:02:29]} 8...
Nf6 {[%clk 0:02:38.8]} 9. d3 {[%clk 0:02:24.3]} 9... Be7 {[%clk 0:02:29.1]} 10.
Nc4 {[%clk 0:02:23.8]} 10... Qc7 {[%clk 0:02:28.5]} 11. a4 {[%clk 0:02:17.9]}
11... O-O {[%clk 0:02:24.6]} 12. Be3 {[%clk 0:02:14.5]} 12... d5 {[%clk
0:02:22.7]} 13. Ncd2 {[%clk 0:02:11.2]} 13... Rad8 {[%clk 0:02:12.7]} 14. Qc2
{[%clk 0:02:03.2]} 14... Ne5 {[%clk 0:01:51.7]} 15. Rfe1 {[%clk 0:01:52.1]}
15... Nxf3+ {[%clk 0:01:44.9]} 16. Bxf3 {[%clk 0:01:51.3]} 16... Bxf3 {[%clk
0:01:42.5]} 17. Nxf3 {[%clk 0:01:52.2]} 17... dxe4 {[%clk 0:01:38.3]} 18. dxe4
{[%clk 0:01:52]} 18... Qc6 {[%clk 0:01:33.8]} 19. Bf4 {[%clk 0:01:48.2]} 19...
c4 {[%clk 0:00:46.4]} 20. Nd4 {[%clk 0:01:40.9]} 20... Qc5 {[%clk 0:00:44.2]}
21. Be3 {[%clk 0:01:37.5]} 21... Qc8 {[%clk 0:00:40.1]} 22. a5 {[%clk
0:01:34.3]} 22... a6 {[%clk 0:00:39]} 23. Bg5 {[%clk 0:01:27.4]} 23... Rd7
{[%clk 0:00:34.7]} 24. Qe2 {[%clk 0:01:20.6]} 24... h6 {[%clk 0:00:32.3]} 25.
Bh4 {[%clk 0:01:19.2]} 25... Rfd8 {[%clk 0:00:29.6]} 26. Ra4 {[%clk 0:01:17.2]}
26... Rc7 {[%clk 0:00:25.6]} 27. Bg3 {[%clk 0:01:15.3]} 27... Rc5 {[%clk
0:00:24.5]} 28. Bh4 {[%clk 0:00:59]} 28... g5 {[%clk 0:00:23]} 29. Bg3 {[%clk
0:00:58.6]} 29... Rd7 {[%clk 0:00:20.4]} 30. Raa1 {[%clk 0:00:46.3]} 30... Bd8
{[%clk 0:00:19.8]} 31. e5 {[%clk 0:00:44.8]} 31... Nd5 {[%clk 0:00:18.6]} 32.
Qh5 {[%clk 0:00:43.2]} 32... Kg7 {[%clk 0:00:17.2]} 33. h4 {[%clk 0:00:40]}
33... Be7 {[%clk 0:00:16.4]} 34. Re4 {[%clk 0:00:37.7]} 34... Qe8 {[%clk
0:00:14.3]} 35. Rae1 {[%clk 0:00:36.7]} 35... Bd8 {[%clk 0:00:11.6]} 36. Rg4
{[%clk 0:00:32.5]} 36... Qh8 {[%clk 0:00:10.3]} 37. hxg5 {[%clk 0:00:28]} 37...
hxg5 {[%clk 0:00:09.1]} 38. Rxg5+ {[%clk 0:00:28.3]} 38... Bxg5 {[%clk
0:00:07.7]} 39. Qxg5+ {[%clk 0:00:29.2]} 39... Kf8 {[%clk 0:00:07.5]} 40. Re4
{[%clk 0:00:24.8]} 40... Ke8 {[%clk 0:00:06.8]} 41. Rh4 {[%clk 0:00:24.5]} 41...
Qf8 {[%clk 0:00:06]} 42. Rh5 {[%clk 0:00:20.5]} 42... Re7 {[%clk 0:00:05.1]} 43.
Qh4 {[%clk 0:00:20.4]} 43... Qg7 {[%clk 0:00:03.4]} 44. Rh8+ {[%clk 0:00:20.5]}
44... Kd7 {[%clk 0:00:03.3]} 45. Rb8 {[%clk 0:00:20.4]} 45... Rc7 {[%clk
0:00:02.2]} 46. Qe4 {[%clk 0:00:18.6]} 46... Qg6 {[%clk 0:00:01.2]} 47. Qe1
{[%clk 0:00:17.1]} 1-0

[Event "*** Titled Tuesday Blitz"]
[Site "Chess.com"]
[Date "2020.05.26"]
[Round "10"]
[White "ameetghasi100"]
[Black "MartinCerveny"]
[Result "1-0"]
[WhiteElo "2709"]
[BlackElo "2518"]
[TimeControl "180+1"]
[EndTime "12:03:47 PDT"]
[Termination "ameetghasi100 won by resignation"]

1. Nf3 {[%clk 0:03:00.9]} 1... d5 {[%clk 0:02:58.7]} 2. g3 {[%clk 0:02:59.6]}
2... Nf6 {[%clk 0:02:58.6]} 3. Bg2 {[%clk 0:03:00.1]} 3... g6 {[%clk 0:02:59.3]}
4. O-O {[%clk 0:03:01]} 4... Bg7 {[%clk 0:02:59.6]} 5. d3 {[%clk 0:03:01.9]}
5... O-O {[%clk 0:02:59.3]} 6. c3 {[%clk 0:03:02.8]} 6... b6 {[%clk 0:02:59.6]}
7. Qa4 {[%clk 0:03:03.2]} 7... Bb7 {[%clk 0:02:57.5]} 8. Qh4 {[%clk 0:03:03.6]}
8... Re8 {[%clk 0:02:51.2]} 9. Bg5 {[%clk 0:03:03.3]} 9... Nbd7 {[%clk
0:02:50.4]} 10. e4 {[%clk 0:03:03.1]} 10... dxe4 {[%clk 0:02:47.8]} 11. Nfd2
{[%clk 0:03:03.2]} 11... Ne5 {[%clk 0:02:35.8]} 12. dxe4 {[%clk 0:02:57.7]}
12... Ba6 {[%clk 0:02:32]} 13. Rd1 {[%clk 0:02:55.8]} 13... Qd3 {[%clk
0:02:16.5]} 14. Na3 {[%clk 0:02:34.9]} 14... Bb7 {[%clk 0:02:04.8]} 15. Qf4
{[%clk 0:01:57.1]} 15... Nh5 {[%clk 0:02:01.3]} 16. Qe3 {[%clk 0:01:55.7]} 16...
Qxe3 {[%clk 0:02:00.5]} 17. Bxe3 {[%clk 0:01:56.6]} 17... Rad8 {[%clk
0:01:59.3]} 18. h3 {[%clk 0:01:51.2]} 18... Nf6 {[%clk 0:01:53.5]} 19. Rab1
{[%clk 0:01:28.5]} 19... e6 {[%clk 0:01:50.2]} 20. f4 {[%clk 0:01:24.4]} 20...
Nd3 {[%clk 0:01:49.2]} 21. Nac4 {[%clk 0:01:11.6]} 21... a5 {[%clk 0:01:35.4]}
22. Bd4 {[%clk 0:01:02.8]} 22... Nd7 {[%clk 0:01:24.4]} 23. e5 {[%clk
0:01:00.3]} 23... Bxg2 {[%clk 0:01:22.8]} 24. Kxg2 {[%clk 0:01:01.2]} 24... N3c5
{[%clk 0:01:17.1]} 25. b4 {[%clk 0:00:57.5]} 25... axb4 {[%clk 0:01:17.3]} 26.
cxb4 {[%clk 0:00:58.4]} 26... Na4 {[%clk 0:01:16.9]} 27. Ne4 {[%clk 0:00:58.9]}
27... Bf8 {[%clk 0:01:15.1]} 28. Rd3 {[%clk 0:00:49.3]} 28... Be7 {[%clk
0:01:11.7]} 29. Rbd1 {[%clk 0:00:47.7]} 29... Nb8 {[%clk 0:01:11.3]} 30. a3
{[%clk 0:00:47.3]} 30... Nc6 {[%clk 0:01:09.7]} 31. Ba1 {[%clk 0:00:44.5]} 31...
Rxd3 {[%clk 0:01:09.6]} 32. Rxd3 {[%clk 0:00:45.4]} 32... Rd8 {[%clk 0:01:09.9]}
33. Rxd8+ {[%clk 0:00:45.1]} 33... Bxd8 {[%clk 0:01:10.8]} 34. Kf3 {[%clk
0:00:44.7]} 34... Be7 {[%clk 0:01:10.9]} 35. g4 {[%clk 0:00:44.9]} 35... b5
{[%clk 0:01:07.7]} 36. Ne3 {[%clk 0:00:44.6]} 36... Nb6 {[%clk 0:01:07]} 37. f5
{[%clk 0:00:44.5]} 37... gxf5 {[%clk 0:01:01.2]} 38. gxf5 {[%clk 0:00:44.4]}
38... Bh4 {[%clk 0:00:58]} 39. Ng4 {[%clk 0:00:41.2]} 39... exf5 {[%clk
0:00:53.8]} 40. Nh6+ {[%clk 0:00:40.7]} 40... Kf8 {[%clk 0:00:54.5]} 41. Nxf5
{[%clk 0:00:41.6]} 41... Be7 {[%clk 0:00:48.6]} 42. Ne3 {[%clk 0:00:40.3]} 42...
Nc4 {[%clk 0:00:46.2]} 43. Nxc4 {[%clk 0:00:40]} 43... bxc4 {[%clk 0:00:47.1]}
44. Bc3 {[%clk 0:00:39.4]} 44... Ke8 {[%clk 0:00:44]} 45. Nd2 {[%clk 0:00:37.5]}
45... Na7 {[%clk 0:00:41.7]} 46. Nxc4 {[%clk 0:00:33.7]} 46... c5 {[%clk
0:00:38.7]} 47. Nd6+ {[%clk 0:00:22]} 47... Bxd6 {[%clk 0:00:38.3]} 48. exd6
{[%clk 0:00:22.9]} 48... Nb5 {[%clk 0:00:33.9]} 49. Be5 {[%clk 0:00:14.2]} 49...
cxb4 {[%clk 0:00:33]} 50. axb4 {[%clk 0:00:14.5]} 50... Kd7 {[%clk 0:00:31.2]}
51. Ke4 {[%clk 0:00:14.1]} 51... Ke6 {[%clk 0:00:31]} 52. Bf4 {[%clk 0:00:14.2]}
52... f5+ {[%clk 0:00:28.7]} 53. Kd3 {[%clk 0:00:14.2]} 53... Nxd6 {[%clk
0:00:25.5]} 54. Bxd6 {[%clk 0:00:07.3]} 54... Kxd6 {[%clk 0:00:26.4]} 55. Kd4
{[%clk 0:00:07.5]} 55... Kc6 {[%clk 0:00:26.2]} 56. Ke5 {[%clk 0:00:07.7]} 56...
Kb5 {[%clk 0:00:26.6]} 57. Kxf5 {[%clk 0:00:08.2]} 57... Kxb4 {[%clk 0:00:27.3]}
58. Kf6 {[%clk 0:00:08.1]} 58... Kc5 {[%clk 0:00:28.2]} 59. Kg7 {[%clk
0:00:07.8]} 59... Kd6 {[%clk 0:00:29.1]} 60. Kxh7 {[%clk 0:00:07.3]} 60... Ke7
{[%clk 0:00:30]} 61. Kg7 {[%clk 0:00:07.4]} 1-0

[Event "*** Titled Tuesday Blitz"]
[Site "Chess.com"]
[Date "2020.05.26"]
[Round "10"]
[White "LiamVrolijk"]
[Black "PKCLUB"]
[Result "0-1"]
[WhiteElo "2767"]
[BlackElo "2626"]
[TimeControl "180+1"]
[EndTime "12:03:48 PDT"]
[Termination "PKCLUB won by resignation"]

1. d4 {[%clk 0:03:00.9]} 1... Nf6 {[%clk 0:02:59.8]} 2. c4 {[%clk 0:03:00.8]}
2... e6 {[%clk 0:03:00.1]} 3. Nf3 {[%clk 0:03:01]} 3... Bb4+ {[%clk 0:02:59.6]}
4. Bd2 {[%clk 0:03:00.8]} 4... a5 {[%clk 0:02:59.4]} 5. g3 {[%clk 0:03:00.5]}
5... d5 {[%clk 0:02:59.1]} 6. Bg2 {[%clk 0:02:58.9]} 6... c6 {[%clk 0:02:57.3]}
7. O-O {[%clk 0:02:57.6]} 7... Bd6 {[%clk 0:02:53]} 8. Nc3 {[%clk 0:02:47.9]}
8... Nbd7 {[%clk 0:02:46.6]} 9. b3 {[%clk 0:02:34.3]} 9... b6 {[%clk 0:02:45.7]}
10. Re1 {[%clk 0:02:29]} 10... O-O {[%clk 0:02:38]} 11. e4 {[%clk 0:02:28.6]}
11... dxe4 {[%clk 0:02:33.8]} 12. Ng5 {[%clk 0:02:25.2]} 12... Bb7 {[%clk
0:02:31.2]} 13. Ngxe4 {[%clk 0:02:25.2]} 13... Nxe4 {[%clk 0:02:24]} 14. Nxe4
{[%clk 0:02:25.4]} 14... Be7 {[%clk 0:02:21.8]} 15. Bf4 {[%clk 0:02:17.9]} 15...
Nf6 {[%clk 0:02:12.1]} 16. Nc3 {[%clk 0:02:11.8]} 16... Bb4 {[%clk 0:02:03.8]}
17. Qd3 {[%clk 0:02:07.5]} 17... a4 {[%clk 0:01:55.3]} 18. Red1 {[%clk
0:01:52.4]} 18... axb3 {[%clk 0:01:44.5]} 19. axb3 {[%clk 0:01:53.3]} 19... Qd7
{[%clk 0:01:27.1]} 20. Na4 {[%clk 0:01:49.5]} 20... Ra6 {[%clk 0:01:22.7]} 21.
c5 {[%clk 0:01:24.8]} 21... Nd5 {[%clk 0:01:21.6]} 22. Bxd5 {[%clk 0:01:14.5]}
22... Qxd5 {[%clk 0:01:20.8]} 23. Nxb6 {[%clk 0:01:13.6]} 23... Rxb6 {[%clk
0:01:20.9]} 24. cxb6 {[%clk 0:01:13.7]} 24... c5 {[%clk 0:01:21.1]} 25. f3
{[%clk 0:01:14.2]} 25... cxd4 {[%clk 0:01:20.5]} 26. Qe4 {[%clk 0:00:54.4]}
26... Qd7 {[%clk 0:01:02.7]} 27. Qe5 {[%clk 0:00:32.7]} 27... f6 {[%clk
0:00:49.4]} 28. Qxd4 {[%clk 0:00:20.5]} 28... Qxd4+ {[%clk 0:00:48.5]} 29. Rxd4
{[%clk 0:00:21.4]} 29... Bc5 {[%clk 0:00:47.2]} 30. Be3 {[%clk 0:00:21.8]} 30...
Bxd4 {[%clk 0:00:44.5]} 31. Bxd4 {[%clk 0:00:22.7]} 31... Bxf3 {[%clk
0:00:44.3]} 32. Ra7 {[%clk 0:00:23.4]} 32... Rd8 {[%clk 0:00:33.6]} 33. Bc5
{[%clk 0:00:20.7]} 33... Bd5 {[%clk 0:00:27.7]} 34. b4 {[%clk 0:00:20.1]} 34...
Rb8 {[%clk 0:00:27.4]} 35. Kf2 {[%clk 0:00:17.7]} 35... Rb7 {[%clk 0:00:27.8]}
36. Ra1 {[%clk 0:00:15.8]} 36... Kf7 {[%clk 0:00:28.2]} 37. Ke3 {[%clk
0:00:16.4]} 37... e5 {[%clk 0:00:28.1]} 38. Rd1 {[%clk 0:00:10.2]} 38... Ke6
{[%clk 0:00:28.1]} 39. g4 {[%clk 0:00:10.8]} 39... Rd7 {[%clk 0:00:27.7]} 40.
Ra1 {[%clk 0:00:10]} 40... Bb7 {[%clk 0:00:27.2]} 41. Rc1 {[%clk 0:00:09.4]}
41... g6 {[%clk 0:00:24.5]} 42. Rg1 {[%clk 0:00:08.3]} 42... f5 {[%clk 0:00:22]}
43. gxf5+ {[%clk 0:00:09.2]} 43... gxf5 {[%clk 0:00:22.5]} 44. Rg8 {[%clk
0:00:09.6]} 44... f4+ {[%clk 0:00:22.6]} 45. Ke2 {[%clk 0:00:10.2]} 45... Kf5
{[%clk 0:00:22]} 46. Re8 {[%clk 0:00:05.8]} 46... Ba6+ {[%clk 0:00:18.8]} 47.
Ke1 {[%clk 0:00:05.8]} 47... e4 {[%clk 0:00:16.9]} 48. Rf8+ {[%clk 0:00:03.9]}
48... Kg4 {[%clk 0:00:16.9]} 49. b5 {[%clk 0:00:03.8]} 49... Bb7 {[%clk
0:00:16.5]} 50. Bb4 {[%clk 0:00:03]} 50... e3 {[%clk 0:00:16]} 51. Bc3 {[%clk
0:00:03.6]} 51... f3 {[%clk 0:00:13.7]} 52. Be5 {[%clk 0:00:03.7]} 52... f2+
{[%clk 0:00:10.8]} 53. Ke2 {[%clk 0:00:04.1]} 53... Bd5 {[%clk 0:00:09.2]} 54.
Kxe3 {[%clk 0:00:04.2]} 54... Re7 {[%clk 0:00:09.6]} 55. Kd4 {[%clk 0:00:03.8]}
55... Bf7 {[%clk 0:00:09.4]} 56. b7 {[%clk 0:00:01.8]} 56... Rxb7 {[%clk
0:00:09]} 0-1